Cogmind - Beta 13 @@@ ROGUE MODE // 2024.03.31 @ 22:42:21 Player: Bobby43rocks Result: Destroyed by G-34 Mercenary with Small Laser Performance ------------- Evolutions (1) 500 Regions Visited (2) 400 Robots Destroyed (39) 195 Value Destroyed (1063) 1063 Prototype IDs (3) 60 Alien Tech Used (0) 0 Bonus (0) 0 TOTAL SCORE: 2218 Bonus ------- None Cogmind --------- Core Integrity 0/400 Matter 188/300 Energy 125/125 System Corruption 2% Temperature Cool (6) Movement Walking (190) Ox1 Location -9/Materials Parts ------- > --- POWER (1) -------- Light Ion Engine > --- PROPULSION (2) --- Aluminum Leg Aluminum Leg > --- UTILITY (4) ------ Large Storage Unit Visual Processing Unit Insulated Plating > --- WEAPON (2) ------- Improved Assault Rifle Improved Assault Rifle > --- INVENTORY (15) --- Ion Engine Ion Engine Improved Ion Engine Improved Ion Engine Improved Ion Engine Aluminum Leg Aluminum Leg Compact Wheel Airjet Heat Sink Melee Analysis Suite Melee Analysis Suite Insulated Plating Peak State ------------ > --- POWER ------------ Improved Ion Engine > --- PROPULSION ------- Airjet Airjet > --- UTILITY ---------- Large Storage Unit Visual Processing Unit Insulated Plating Insulated Plating > --- WEAPON ----------- Particle Gun > --- INVENTORY -------- Ion Engine Light Ion Engine Improved Ion Engine Improved Ion Engine Improved Ion Engine Aluminum Leg Aluminum Leg Compact Wheel Heat Sink Melee Analysis Suite Melee Analysis Suite Insulated Plating Grenade Launcher [Rating: 21] Favorites ----------- Power Light Ion Engine Engine Light Ion Engine Propulsion Light Treads Treads Light Treads Leg Aluminum Leg Wheel Compact Wheel Hover Unit Airjet Utility Large Storage Unit Storage Large Storage Unit Processor Terrain Scan Processor Protection Insulated Plating Weapon Medium Laser Energy Gun Medium Laser Energy Cannon Beam Cannon Ballistic Gun Assault Rifle Launcher Grenade Launcher Build | -11 -10 -9 ------- Run | Yrd Mat Mat Slots Evolved 2 | . . 2 Power . | . . . Propulsion . | . . . Utility 2 | . . 2 Weapon . | . . . Parts Attached 38 | 6 5 27 Power 7 | 1 2 4 Engine 7 | 1 2 4 Core . | . . . Reactor . | . . . Propulsion 12 | 2 . 10 Treads 3 | 2 . 1 Leg 5 | . . 5 Wheel 1 | . . 1 Hover 3 | . . 3 Flight . | . . . Utility 8 | 1 2 5 Device . | . . . Storage 2 | 1 1 . Processor 3 | . 1 2 Hackware . | . . . Protection 3 | . . 3 Artifact . | . . . Weapon 11 | 2 1 8 Energy Gun 3 | 1 . 2 Energy Cannon 2 | . . 2 Ballistic Gun 4 | 1 . 3 Ballistic Cannon . | . . . Launcher 2 | . 1 1 Special Weapon . | . . . Impact Weapon . | . . . Slashing Weapon . | . . . Piercing Weapon . | . . . Special Melee Weapon . | . . . Unidentified Prototypes 1 | . . 1 Parts Lost 15 | . 1 14 Power 3 | . 1 2 Propulsion 4 | . . 4 Utility 2 | . . 2 Weapon 6 | . . 6 Highest Loss Streak 2 | . 1 2 To Critical Strikes . | . . . Average Slot Usage (%) 89 | . 95 82 Engine 12 | . 13 10 Treads 18 | . 28 8 Leg 1 | . . 3 Hover 1 | . . 3 Storage 12 | . 14 11 Processor 17 | . 10 25 Protection 2 | . . 5 Energy Gun 11 | . 14 8 Ballistic Gun 2 | . . 4 Launcher 6 | . 13 . Naked Turns . | . . . Heaviest Build 36 | 12 30 36 Greatest Support 43 | 40 40 43 Greatest Overweight (x) 10 | . . 10 Average Overweight (x) . | . . 1 Largest Inventory Capacity 15 | 8 15 15 Average Capacity 12 | 6 11 15 Most Carried 15 | 5 10 15 Average Carried 8 | 3 7 9 Final Capacity 15 | 8 15 15 Final Carried 13 | 5 9 13 Class Distribution -------------------- 100% | Mutant Dominant Class ---------------- Mutant | -10/Materials Mutant | -9/Materials Resources | -11 -10 -9 ----------- Run | Yrd Mat Mat Matter Collected 823 | 202 201 420 Remotely . | . . . Salvage Created 1316 | . 524 792 Parts 73 | . 25 48 Haulers Intercepted . | . . . Recyclers Shooed . | . . . Parts Field Recycled . | . . . Retrieved Matter . | . . . Parts Self-Destructed . | . . . Prevented . | . . . Kills | -11 -10 -9 ------- Run | Yrd Mat Mat Combat Hostiles Destroyed 31 | . 12 19 Melee 1 | . . 1 Guns 18 | . 4 14 Cannons 4 | . . 4 AOE 8 | . 8 . Classes Destroyed 9 | . 6 3 Worker 2 | . 1 1 Builder 1 | . 1 . Recycler 3 | . 3 . Watcher 2 | . 1 1 Swarmer 7 | . 3 4 Grunt 19 | . 9 10 Brawler 1 | . . 1 Duelist 1 | . . 1 Sentry 3 | . . 3 Best Kill Streak 5 | . 5 5 Combat Bots Only 5 | . 4 5 Max Kills in Single Turn 2 | . 2 2 Gunslinging . | . . . Exploded 2 | . 2 . Melee 1 | . . 1 Uniques/NPCs Destroyed . | . . . Combat | -11 -10 -9 -------- Run | Yrd Mat Mat Hostile Shots Fired 266 | . 43 223 Missed 88 | . 16 72 Damage Taken 2258 | . 400 1858 Core 441 | . 39 402 Absorbed by Shields . | . . . Core Remaining (%) 92 | 100 84 . Volleys Fired 93 | . 25 68 Largest 2 | . 2 2 Hottest 120 | . 80 120 Shots Fired 146 | . 43 103 Gun 109 | . 30 79 Cannon 24 | . . 24 Launcher 13 | . 13 . Special . | . . . Kinetic 46 | . 5 41 Thermal 78 | . 25 53 Explosive 13 | . 13 . Electromagnetic 9 | . . 9 Robot Hit Streak 9 | . 5 9 Robot Miss Streak 3 | . 3 3 Penetration Max . | . . . Secondary Targets 3 | . . 3 Max Gunslinging Chain 1 | . . 1 Shots Hit Robots 92 | . 25 67 Core Hits 75 | . 38 37 Critical Kills . | . . . Critical Parts Destroyed . | . . . Critical Strikes 2 | . 1 1 Burn 2 | . 1 1 Melee Attacks . | . . . Impact . | . . . Slashing . | . . . Piercing . | . . . Sneak Attacks . | . . . Combat Hostiles . | . . . Follow-up Attacks . | . . . Damage Inflicted 2310 | . 1094 1216 Guns 1081 | . 250 831 Cannons 281 | . . 281 Explosions 866 | . 823 43 Melee . | . . . Ramming 82 | . 21 61 Kinetic 471 | . 40 431 Thermal 861 | . 210 651 Explosive 674 | . 674 . Electromagnetic 222 | . 149 73 Impact . | . . . Slashing . | . . . Piercing . | . . . Highest Corruption 2 | . 2 2 Average Corruption 2 | . 2 2 Corruption Purged . | . . . Corruption Blocked . | . . . Effects 17 | . 13 4 Message Errors 3 | . 3 . Matter Fused 6 | . 5 1 Heat Flow Errors 3 | . 3 . Energy Discharges 1 | . 1 . Parts Rejected 1 | . . 1 Data Loss (minor) 1 | . 1 . Data Loss (major) 1 | . . 1 Weapon Failures 1 | . . 1 Overload Shots . | . . . Overflow Damage 4 | . 4 . Projectiles . | . . . Explosions 4 | . 4 . Melee . | . . . Knockbacks 1 | . . 1 Impact 1 | . . 1 Kinetic . | . . . Secondary . | . . . Self-Inflicted Damage 120 | . 107 13 Shots 7 | . 7 . Rammed 24 | . 7 17 Targets Rammed 32 | . 10 22 Kicked 5 | . . 5 Crushed 3 | . 3 . Highest Temperature 604 | . 328 604 Average Temperature 135 | . 75 174 Received Heat Transfer 1041 | . 135 906 Effects 20 | . . 20 Shutdowns 4 | . . 4 Energy Bleed 1 | . . 1 Interference 3 | . . 3 Matter Decay 4 | . . 4 Short Circuit 2 | . . 2 Damage (minor) 2 | . . 2 Damage (major) 3 | . . 3 Damage (core) 1 | . . 1 Siege Activations . | . . . Robots Corrupted . | . . . Combat Hostiles . | . . . Parts Fried . | . . . Impact Corruptions . | . . . Robots Melted . | . . . Combat Hostiles . | . . . Parts Melted 6 | . 1 5 Heat Transferred 2270 | . 703 1567 Parts Sabotaged . | . . . Parts Stolen . | . . . Parts Stripped . | . . . Power Chain Reactions 1 | . . 1 Alert | -11 -10 -9 ------- Run | Yrd Mat Mat Peak Influence 281 | . 257 281 Initial 53 | . . 53 Average 104 | . 123 96 Maximum Alert Level 1 | . 1 1 Low Security (%) 93 | 100 94 91 Level 1 6 | . 5 8 Level 2 . | . . . Level 3 . | . . . Level 4 . | . . . Level 5 . | . . . High Security . | . . . Max Security . | . . . Squads Dispatched 2 | . 2 . Investigation . | . . . Extermination . | . . . Reinforcement 2 | . 2 . Assault . | . . . Garrison . | . . . Intercept . | . . . Searches Triggered . | . . . Construction Impeded . | . . . Haulers Reinforced . | . . . Active Scanning Responses . | . . . Cargo Convoy Interrupts . | . . . Stealth | -11 -10 -9 --------- Run | Yrd Mat Mat Distress Signals 2 | . 1 1 Communications Jammed . | . . . Distress Signals . | . . . Times Spotted 48 | . 21 27 Peak Tracking Total 7 | . 5 7 Tactical Retreats 2 | . 1 1 Traps | -11 -10 -9 ------- Run | Yrd Mat Mat Traps Triggered 1 | . 1 . Indirectly . | . . . Trap Hack Attempts . | . . . Triggered . | . . . Disarmed . | . . . Reprogrammed . | . . . Reused . | . . . Traps Extracted . | . . . Installed . | . . . Triggered . | . . . Machines | -11 -10 -9 ---------- Run | Yrd Mat Mat Machines Disabled 2 | . 2 . Max in Single Turn 1 | . 1 . Machines Repaired . | . . . Machines Dismantled . | . . . Machines Sabotaged . | . . . Overloaded Fab Kills . | . . . Hacking | -11 -10 -9 --------- Run | Yrd Mat Mat Machines Accessed 7 | . 5 2 Terminals 3 | . 3 . Fabricators . | . . . Repair Stations 2 | . 1 1 Recycling Units 1 | . 1 . Scanalyzers 1 | . . 1 Garrison Access . | . . . Total Hacks 12 | . 6 6 Successful 8 | . 4 4 Failed 4 | . 2 2 Catastrophic . | . . . Database Lockouts . | . . . Manual . | . . . Terminals 3 | . 3 . Fabricators . | . . . Repair Stations 3 | . 2 1 Recycling Units 1 | . 1 . Scanalyzers 5 | . . 5 Garrison Access . | . . . Terminal Hacks 2 | . 2 . Prototype ID Bank 1 | . 1 . Dispatch Records 1 | . 1 . Fabricator Hacks . | . . . Repair Station Hacks 1 | . 1 . Scan Component 1 | . 1 . Recycling Unit Hacks 1 | . 1 . Recycle Component 1 | . 1 . Scanalyzer 4 | . . 4 Insert Component 2 | . . 2 Analyze 2 | . . 2 Garrison Access Hacks . | . . . Unauthorized Hacks . | . . . Terminals . | . . . Fabricators . | . . . Repair Stations . | . . . Recycling Units . | . . . Scanalyzers . | . . . Garrison Access . | . . . Data Cores Recovered . | . . . Used . | . . . Hacking Detections 4 | . 3 1 Full Trace Events . | . . . Feedback Events . | . . . Feedback Blocked . | . . . Robot Schematics Acquired . | . . . Robots Built . | . . . Authchips . | . . . Time . | . . . Total Robot Build Rating . | . . . Part Schematics Acquired 2 | . . 2 Parts Built . | . . . Authchips . | . . . Time . | . . . Total Part Build Rating . | . . . Parts Repaired . | . . . Time . | . . . Parts Recycled 1 | . 1 . Recycled Matter . | . . . Retrieved Matter . | . . . Retrieved Components . | . . . Parts Scanalyzed 2 | . . 2 Part Schematics Acquired 2 | . . 2 Parts Damaged 1 | . . 1 Bothacking | -11 -10 -9 ------------ Run | Yrd Mat Mat Used RIF Installer . | . . . Robots Hacked . | . . . Non-combat . | . . . Combat . | . . . Robot Hacks Applied . | . . . Relay Couplers Released . | . . . Fabnet Peak Effective % . | . . . Robots Rewired . | . . . Allies Hacked . | . . . Hacks Repelled . | . . . Allies | -11 -10 -9 -------- Run | Yrd Mat Mat Total Allies . | . . . Largest Group . | . . . Highest-Rated Group . | . . . Highest-Rated Ally . | . . . Total Orders . | . . . Ally Attacks . | . . . Total Damage . | . . . Kills . | . . . Allies Corrupted . | . . . Allies Melted . | . . . Intel | -11 -10 -9 ------- Run | Yrd Mat Mat Robot Analysis Total . | . . . Derelict Logs Recovered . | . . . Drone Launches . | . . . Drone Recoveries . | . . . Exploration | -11 -10 -9 ------------- Run | Yrd Mat Mat Turns Passed 2407 | 119 1175 1113 Spaces Moved 1147 | 75 670 402 Core 16 | 14 . 2 Treads 972 | 61 670 241 Legs 70 | . . 70 Wheels 10 | . . 10 Hover 79 | . . 79 Flight . | . . . Fastest Speed 50 | 50 160 115 Average Speed 175 | 139 160 207 Slowest Speed 550 | 160 160 550 Overloaded Moves . | . . . Propulsion Burnouts . | . . . Robots Hopped . | . . . Cave-ins Triggered . | . . . Exploration Rate (%) 35 | 5 72 28 Regions Visited 2 Branch Regions . Pre-discovered Areas . | . . . Known Exits Taken . | . . . Unknown Exits Taken 2 | 1 1 . Scrap Searched . | . . . Spaces Dug . | . . . Terrain Destroyed 59 | . 57 2 Melee . | . . . Projectile . | . . . AOE 59 | . 57 2 Terrain Rammed . | . . . Walls Destroyed . | . . . Machines Disabled . | . . . Actions | -11 -10 -9 --------- Run | Yrd Mat Mat Total 1354 | 87 725 542 Wait 4 | . 1 3 Move 1145 | 74 669 402 Hop . | . . . Pick Up 34 | 6 10 18 Fast Attach 11 | 6 1 4 Attach 13 | . 1 12 Detach . | . . . Swap 14 | . 3 11 Drop 8 | 1 5 2 Fire 93 | . 25 68 Melee . | . . . Ram 15 | . . 15 Kick 5 | . . 5 Crush 12 | . 10 2 Escape Stasis . | . . . Rewire . | . . . Trap . | . . . Miscellaneous . | . . . Route ------- -11/Scrapyard -10/Materials (discovered 3 exits: *Mat x2 / [*Min]) -9/Materials History --------- Turn | Location | Event 9 | -11/Scrapyard | Discovered new exit (range 16) 120 | -11/Scrapyard | Entered Materials 305 | -10/Materials | Build established: Mutant 326 | -10/Materials | Discovered new exit (range 7) 668 | -10/Materials | Discovered new exit (range 16) 890 | -10/Materials | Discovered new exit (range 7) 1295 | -10/Materials | Entered another Materials area 1295 | -9/Materials | Evolved 2 slots: Utility x2 1628 | -9/Materials | Core integrity fell below 50% 1995 | -9/Materials | Core integrity fell below 20% 2408 | -9/Materials | Destroyed by G-34 Mercenary with Small Laser Last Messages --------------- R-06 Scavenger collects Melee Analysis Suite. T-07 Excavator is excavating. K-01 Serf collects debris. System corrupted: Matter fused (-8). K-01 Serf collects debris. U-05 Engineer lays Concrete. R-06 Scavenger collects Core Shielding. K-01 Serf collects debris. T-07 Excavator is excavating. U-05 Engineer lays Concrete. K-01 Serf collects debris. R-06 Scavenger collects Aluminum Leg. Acquired Ion Engine. K-01 Serf collects debris. Acquired 98 matter. U-05 Engineer builds a Door. K-01 Serf collects debris. W-16 Scout sends out distress signal. K-01 Serf collects debris. Acquired Aluminum Leg. Map ----- +----------------------------------------------------+ | ?????????????????????????????????????????????????? | | ?????????????????????????????????????????????????? | | ?????????????????????????????????????????????????? | | ?????????????????????????????????????????????????? | | ?????????????????????????????????????????????????? | | ?????????????????????????????????????????????????? | | ?????????????????????????????????????????????????? | | ?????????????????????????????????????????????????? | | ?????????????????????????????????????????????????? | | ?????????????????????????????????????????????????? | | ???????????????????????? ?????????????????????? | | ???????????????????????? ?????????????????????? | | ???????????????????????# ?????????????????????? | | ???????????????????????# w?????????????????????? | | ???????????????????????# t#?????????????????????? | | ???????????????????????# #?????????????????????? | | ???????????????????????# #?????????????????????? | | ??????????????????????## #?????????????????????? | | ?????????????????????? #?????????????????????? | | ??????????????????????? #?????????????????????? | | ???????????????????????g #?????????????????????? | | ????????????????######?#g #?????????????????????? | | ????????????????# # k #?????????????????????? | | ????????????????# # #?????????????????????? | | ????????????????????" /k #?????????????????????? | | ???????????????????????#[@*#?????????????????????? | | ???????????????????????#% !#???##????????????????? | | ???????????????????????#=uu#?? #????????????????? | | ???????????????????????# #? #????????????????? | | ???????????????????????# #? #????????????????? | | ???????????????????????# u # #????????????????? | | ???????????????????????# %*# #????????????????? | | ???????????????????????# + #????????????????? | | ??????????????#"S ### # #????????????????? | | ???????????????""" /% # #????????????????? | | ??????????????# "" ####+#######????????????????? | | ??????????????# ??# #??????????????????? | | ??????????????# ?????# #??????????????????? | | ?????????????????????# #??????????????????? | | ?????????????????????#= """#??????????????????? | | ?????????????????????#= """#??????????????????? | | ?????????????????????# """#??????????????????? | | ?????????????????????# """#??????????????????? | | ?????????????????????# [ """#??????????????????? | | ?????????????????????#% #??????????????????? | | ?????????????????????#+########??????????????????? | | ???????????########### #?????????????????????????? | | ???????????# # ## #?????????????????????????? | | ???????????# ## #??######?????????????????? | | ???????????# ##%### #?????????????????? | +----------------------------------------------------+ Best States ------------- Heat Dissipation 28 Energy Generation 12 Energy Capacity 265 Matter Stores 300 Matter Capacity 300 Sight Range 18 Terrain Scan Density 85 Armor Coverage 300 Resistance: EM 15 Evasion (%) 50 Recoil Reduction 2 Item Schematics ----------------- Grenade Launcher | -9/Materials | Scanalyzed Beam Cannon | -9/Materials | Scanalyzed Robot Schematics ------------------ None Fabricated ------------ Nothing Alien Tech Used ----------------- None Achievements -------------- None Challenges ------------ None Game ------ Seed SuperchargedSmartbombSteel Manual? 0 Play Time 00:16:59 Cumulative 2.1 hours Start 2024.03.31 @ 22:26:02 End 2024.03.31 @ 22:42:21 Sessions 1 Manual Loads 0 Difficulty Rogue Special Mode None Game No. 7 Rogue 7 Adventurer 0 Explorer 0 Win Type - Total 0 Types 0/0/0/0/0/0/0/0/0 Lore% 0 Gallery% 6 Achievement% 3 Wizard Run 0 Options --------- Layout 1 ASCII 0 Keyboard 1 Movement Arrows Keybinds 0 Fullscreen 2 Font 24/Smallcaps Map View 50x35 Zoom Use 0% Tactical HUD 0 Map Filters NONE Filters NONE Steam 1 RUN: 0313457f-6149-48a5-9454-1c469f996398